fUSD/lending_fUSD_20241221
["ID","MTS","AMOUNT","RATE_DAILY","PERIOD"]
[346228548,1734787839429,-500.0,0.00019572,2]
[346228549,1734787839437,-500.0,0.00019572,2]
[346228550,1734787839446,-915.91,0.00019572,2]
[346228551,1734787839456,-620.9,0.00019572,2]
[346228552,1734787839466,-773.51,0.00019572,2]
[346228553,1734787839475,-500.0,0.00019572,2]
[346228554,1734787839485,-500.0,0.00019572,2]
[346228555,1734787839494,-500.0,0.00019572,2]
[346228556,1734787839503,-500.0,0.00019572,2]
[346228557,1734787839512,-500.0,0.00019572,2]
[346228558,1734787839521,-502.22629406,0.00019572,2]
[346228559,1734787839530,-503.55725617,0.00019572,2]
[346228560,1734787839539,-500.85088871,0.00019572,2]
[346228561,1734787839548,-504.80872689,0.00019572,2]
[346228562,1734787839557,-500.0,0.00019572,2]
[346228563,1734787839568,-560.40032138,0.00019572,2]
[346228564,1734787839578,-500.0,0.00019572,2]
[346228565,1734787839587,-501.92627461,0.00019572,2]
[346228566,1734787839597,-514.61,0.00019572,2]
[346228567,1734787839607,-502.13427223,0.00019572,2]
[346228568,1734787839616,-500.0,0.00019572,2]
[346228569,1734787839625,-646.0,0.00019572,2]
[346228570,1734787839636,-503.03486203,0.00019572,2]
[346228571,1734787839646,-500.0,0.00019572,2]
[346228572,1734787839656,-501.959251,0.00019572,2]
[346228573,1734787839666,-500.0,0.00019572,2]
[346228574,1734787839675,-500.0,0.00019572,2]
[346228575,1734787839684,-500.0,0.00019572,2]
[346228576,1734787839693,-500.0,0.00019572,2]
[346228577,1734787839703,-501.82152555,0.00019572,2]
[346228578,1734787839711,-500.0,0.00019572,2]
[346228579,1734787839721,-506.23781041,0.00019572,2]
[346228580,1734787839730,-500.0,0.00019572,2]
[346228581,1734787839739,-500.44758953,0.00019572,2]
[346228582,1734787839748,-500.0,0.00019572,2]
[346228583,1734787839757,-500.0,0.00019572,2]
[346228584,1734787839767,-580.13,0.00019572,2]
[346228585,1734787839776,-631.29,0.00019572,2]
[346228586,1734787839785,-503.10535481,0.00019572,2]
[346228587,1734787839794,-880.97,0.00019572,2]
[346228588,1734787839803,-501.99665287,0.00019572,2]
[346228589,1734787839815,-500.0,0.00019572,2]
[346228590,1734787839824,-500.0,0.00019572,2]
[346228591,1734787839832,-500.0,0.00019572,2]
[346228592,1734787839842,-500.0,0.00019572,2]
[346228593,1734787839851,-503.13543368,0.00019572,2]
[346228594,1734787839860,-695.43,0.00019572,2]
[346228595,1734787839869,-500.0,0.00019572,2]
[346228596,1734787839878,-500.0,0.00019572,2]
[346228597,1734787839887,-501.19321222,0.00019572,2]
[346228598,1734787839896,-2386.5,0.00019572,2]
[346228599,1734787839905,-500.0,0.00019572,2]
[346228600,1734787839914,-500.0,0.00019572,2]
[346228601,1734787839923,-500.0,0.00019572,2]
[346228602,1734787839932,-500.0,0.00019572,2]
[346228603,1734787839942,-500.0,0.00019572,2]
[346228604,1734787839951,-501.89569181,0.00019572,2]
[346228606,1734787839960,-501.29580456,0.00019572,2]
[346228607,1734787839969,-5578.56,0.00019572,2]
[346228608,1734787839978,-501.69821181,0.00019572,2]
[346228610,1734787839988,-1370.39,0.00019572,2]
[346228611,1734787839997,-500.0,0.00019572,2]
[346228612,1734787840006,-501.94701477,0.00019572,2]
[346228613,1734787840015,-501.9196059,0.00019572,2]
[346228614,1734787840024,-1584.32,0.00019572,2]
[346228615,1734787840033,-687.65,0.00019572,2]
[346228616,1734787840042,-513.61536253,0.00019572,2]
[346228617,1734787840052,-500.0,0.00019572,2]
[346228618,1734787840061,-1293.79,0.00019572,2]
[346228619,1734787840073,-549.89,0.00019572,2]
[346228620,1734787840082,-500.0,0.00019572,2]
[346228621,1734787840091,-500.0,0.00019572,2]
[346228622,1734787840101,-500.0,0.00019572,2]
[346228623,1734787840111,-518.19140557,0.00019572,2]
[346228624,1734787840120,-555.01,0.00019572,2]
[346228625,1734787840130,-880.61,0.00019572,2]
[346228626,1734787840139,-769.65,0.00019572,2]
[346228627,1734787840149,-500.0,0.00019572,2]
[346228628,1734787840159,-503.75505285,0.00019572,2]
[346228629,1734787840169,-704.86,0.00019572,2]
[346228630,1734787840178,-212.01167194,0.00019572,2]
[346228631,1734787840187,-500.0,0.00019572,2]
[346228632,1734787840197,-1403.44,0.00019572,2]
[346228633,1734787840206,-360.47806133,0.00019572,2]
[346228634,1734787840215,-500.0,0.00019572,2]
[346228635,1734787840224,-2186.51,0.00019572,2]
[346228636,1734787840236,-500.0,0.00019572,2]
[346228637,1734787840245,-500.0,0.00019572,2]
[346228638,1734787840255,-835.5,0.00019572,2]
[346228639,1734787840264,-737.39,0.00019572,2]
[346228640,1734787840273,-500.0,0.00019572,2]
[346228641,1734787840283,-1063.52,0.00019572,2]
[346228642,1734787840292,-3460.53,0.00019572,2]
[346228643,1734787840301,-519.93,0.00019572,2]
[346228644,1734787840310,-500.0,0.00019572,2]
[346228645,1734787840322,-3573.88,0.00019572,2]
[346228646,1734787840331,-569.02,0.00019572,2]
[346228647,1734787840341,-500.0,0.00019572,2]
[346228648,1734787840350,-707.32,0.00019572,2]
[346228649,1734787840360,-500.0,0.00019572,2]
[346228650,1734787840369,-500.0,0.00019572,2]
[346228651,1734787840379,-500.0,0.00019572,2]
[346228652,1734787840388,-500.0,0.00019572,2]
[346228653,1734787840397,-725.51,0.00019572,2]
[346228654,1734787840406,-500.0,0.00019572,2]
[346228655,1734787840415,-500.0,0.00019572,2]
[346228656,1734787840425,-500.0,0.00019572,2]
[346228657,1734787840434,-911.19,0.00019572,2]
[346228658,1734787840444,-896.87,0.00019572,2]
[346228659,1734787840454,-500.0,0.00019572,2]
[346228660,1734787840463,-500.0,0.00019572,2]
[346228661,1734787840472,-500.0,0.00019572,2]
[346228662,1734787840482,-500.0,0.00019572,2]
[346228663,1734787840491,-873.92,0.00019572,2]
[346228664,1734787840500,-600.78,0.00019572,2]
[346228665,1734787840510,-500.0,0.00019572,2]
[346228666,1734787840519,-500.0,0.00019572,2]
[346228667,1734787840528,-125960.97797006,0.00019573,2]
[346228668,1734787840629,-130099.14738351,0.00019573,2]
[346228669,1734787840665,-134499.35814643,0.00019573,2]
[346228670,1734787840675,-9401.5924,0.00019574,2]
[346228671,1734787840685,-1500.0,0.00019574,2]
[346228672,1734787840694,-1000.0,0.00019574,2]
[346228673,1734787840705,-150.0,0.00019579,2]
[346228674,1734787840718,-2139.78058,0.0001958,2]
[346228675,1734787840727,-1100.0,0.000196,7]
[346228676,1734787840737,-852.83540152,0.00019608,2]
[346228677,1734787840746,-500.0,0.00019619,2]
[346228678,1734787840756,-25651.81469205,0.0001962,2]
[346228679,1734787840768,-537.69105412,0.0001962,2]
[346228680,1734787840791,-1209.39285383,0.0001962,2]
[346228681,1734787840801,-852.83540152,0.00019653,2]
[346228682,1734787840814,-150.0,0.00019657,2]
[346228683,1734787840824,-152.76,0.00019664,2]
[346228684,1734787840834,-407.79,0.00019672,2]
[346228685,1734787840842,-500.0,0.00019673,2]
[346228686,1734787840851,-306.68195645,0.00019673,2]
[346228687,1734787840861,-500.0,0.00019673,2]
[346228688,1734787840870,-500.0,0.00019673,2]
[346228689,1734787840879,-500.0,0.00019673,2]
[346228690,1734787840888,-500.0,0.00019673,2]
[346228691,1734787840898,-500.0,0.00019673,2]
[346228692,1734787840906,-500.0,0.00019673,2]
[346228693,1734787840915,-500.0,0.00019673,2]
[346228694,1734787840924,-500.0,0.00019673,2]
[346228695,1734787840933,-500.0,0.00019673,2]
[346228696,1734787840942,-500.0,0.00019673,2]
[346228697,1734787840951,-500.0,0.00019673,2]
[346228698,1734787840963,-500.0,0.00019673,2]
[346228699,1734787840972,-500.0,0.00019673,2]
[346228700,1734787840981,-95.58719432,0.00019673,2]
[346228735,1734787843645,-931.94049999,0.00019478,2]
[346228736,1734787843656,-1213.00845908,0.00019478,2]
[346228739,1734787843778,-324.04812199,0.00019478,2]
[346228740,1734787843905,-27531.00291894,0.00019478,2]
[346228741,1734787843915,-500.0,0.00019571,2]
[346228742,1734787843925,-500.0,0.00019571,2]
[346228743,1734787843934,-500.0,0.00019571,2]
[346228744,1734787843944,-877.75,0.00019572,2]
[346228745,1734787843953,-472.79280568,0.00019673,2]
[346228746,1734787843963,-500.0,0.00019673,2]
[346228747,1734787843972,-500.0,0.00019673,2]
[346228748,1734787843981,-500.0,0.00019673,2]
[346228749,1734787843990,-500.0,0.00019673,2]
[346228750,1734787843999,-188.60560068,0.00019673,2]
[346228751,1734787844012,-311.39439932,0.00019673,2]
[346228752,1734787844021,-500.0,0.00019673,2]
[346228753,1734787844031,-500.0,0.00019673,2]
[346228754,1734787844040,-500.0,0.00019673,2]
[346228755,1734787844050,-500.0,0.00019673,2]
[346228756,1734787844059,-500.0,0.00019673,2]
[346228757,1734787844070,-500.0,0.00019673,2]
[346228758,1734787844080,-1018.9,0.00019673,2]
[346228759,1734787844089,-500.0,0.00019673,2]
[346228760,1734787844099,-500.0,0.00019673,2]
[346228761,1734787844109,-500.0,0.00019673,2]
[346228762,1734787844118,-500.0,0.00019673,2]
[346228763,1734787844127,-500.0,0.00019673,2]
[346228764,1734787844137,-531.74,0.00019673,2]
[346228765,1734787844146,-500.0,0.00019673,2]
[346228766,1734787844156,-500.0,0.00019673,2]
[346228767,1734787844170,-500.0,0.00019673,2]
[346228768,1734787844179,-500.0,0.00019673,2]
[346228770,1734787844188,-500.0,0.00019673,2]
[346228771,1734787844198,-500.0,0.00019673,2]
[346228772,1734787844209,-500.0,0.00019673,2]
[346228774,1734787844218,-986.94142086,0.00019673,2]
[346228779,1734787844247,-287.54857914,0.00019673,2]
[346228780,1734787844257,-500.0,0.00019673,2]
[346228781,1734787844266,-645.34371129,0.00019673,2]
[346228782,1734787844275,-500.0,0.00019673,2]
[346228783,1734787844285,-500.0,0.00019673,2]
[346228784,1734787844294,-500.0,0.00019673,2]
[346228785,1734787844303,-500.0,0.00019673,2]
[346228786,1734787844312,-500.0,0.00019673,2]
[346228787,1734787844324,-500.0,0.00019673,2]
[346228788,1734787844333,-500.0,0.00019673,2]
[346228789,1734787844343,-285.10770957,0.00019673,2]
[346228805,1734787846041,-302.73116437,0.00019478,2]
[346228807,1734787846051,-500.0,0.00019571,2]
[346228809,1734787846061,-214.89229043,0.00019673,2]
[346228811,1734787846076,-48.09964903,0.00019673,2]
[346228814,1734787846089,-355.20750025,0.00019673,2]
[346228817,1734787846115,-96.69285072,0.00019673,2]
[346228819,1734787846125,-157.34604928,0.00019673,2]
[346228820,1734787846170,-342.65395072,0.00019673,2]
[346228821,1734787846181,-611.40254775,0.00019673,2]
[346228822,1734787846190,-1556.13,0.00019673,2]
[346228823,1734787846203,-500.0,0.00019673,2]
[346228824,1734787846213,-500.0,0.00019673,2]
[346228825,1734787846222,-500.0,0.00019673,2]
[346228826,1734787846234,-500.0,0.00019673,2]
[346228827,1734787846244,-500.0,0.00019673,2]
[346228828,1734787846253,-307.1336406,0.00019673,2]
[346228829,1734787846263,-500.0,0.00019673,2]
[346228830,1734787846272,-500.0,0.00019673,2]
[346228831,1734787846281,-500.0,0.00019673,2]
[346228832,1734787846291,-500.0,0.00019673,2]
[346228833,1734787846301,-500.0,0.00019673,2]
[346228834,1734787846310,-500.0,0.00019673,2]
[346228835,1734787846323,-1115.44,0.00019673,2]
[346228836,1734787846333,-50.12668909,0.00019674,2]
[346228837,1734787846587,-449.87331091,0.00019674,2]
[346228838,1734787846597,-3160.677,0.00019674,2]
[346228839,1734787846606,-2857.17065574,0.00019674,2]
[346228840,1734787846634,-350.51404116,0.00019674,2]
[346228841,1734787846649,-19389.12256669,0.00019674,2]
[346228842,1734787846660,-2224.61901,0.00019674,2]
[346228843,1734787846671,-3371.99999984,0.00019674,2]
[346228844,1734787846701,-500.0,0.00019571,2]
[346228845,1734787846711,-8845.45322657,0.00019674,2]
[346228846,1734787846720,-7606.78947653,0.00019674,2]
[346228847,1734787933392,574.34,0.0001681,2]
[346228851,1734788220034,8811.1138044,0.00020222,120]
[346228852,1734788269838,5561.0,0.000157,5]
[346228854,1734788530981,366.59,0.00018466,30]
[346228856,1734788693298,150.59,0.00010137,2]
[346228857,1734788829373,181.94,0.00017976,2]
[346228858,1734788946399,3193.78,0.00017974,2]
[346228859,1734789026578,620.17,0.00017984,2]
[346228868,1734789032292,-2751.0,0.00018005,2]
[346228869,1734789032303,-250.0,0.00018031,2]
[346228870,1734789032313,-347.5,0.00018277,2]
[346228871,1734789032323,-500.0,0.00018278,2]
[346228872,1734789032332,-1000.0,0.00018331,2]
[346228873,1734789032342,-165.53,0.00018384,2]
[346228874,1734789032352,-153.99,0.00018536,2]
[346228875,1734789032362,-150.0,0.00018548,2]
[346228876,1734789032371,-166.74,0.00018557,2]
[346228877,1734789032380,-2129.97,0.00018563,2]
[346228878,1734789032389,-153.99,0.00018566,2]
[346228879,1734789032399,-250.0,0.00018586,2]
[346228880,1734789032408,-153.99,0.00018597,2]
[346228881,1734789032418,-153.99,0.00018628,2]
[346228882,1734789032427,-409.44,0.0001865,2]
[346228883,1734789032437,-500.0,0.0001868,2]
[346228884,1734789032446,-300.0,0.00018684,2]
[346228885,1734789032456,-1794.61,0.00018685,2]
[346228886,1734789032465,-250.0,0.00018704,2]
[346228887,1734789032475,-584.51,0.00018772,2]
[346228888,1734789032489,-656.869,0.0001879,2]
[346228889,1734789032498,-976.98,0.00018878,2]
[346228890,1734789032508,-5000.0,0.000189,2]
[346228891,1734789032518,-609.65640882,0.00018961,2]
[346228892,1734789032527,-620.98908318,0.00019,2]
[346228893,1734789032539,-3379.01091682,0.00019,2]
[346228894,1734789032549,-600.0,0.00019,2]
[346228895,1734789032559,-6888.67106967,0.00019,2]
[346228896,1734789032574,-1085.50905,0.00019,2]
[346228897,1734789032586,-10900.3907345,0.00019,2]
[346228898,1734789032597,-1352.0,0.00019,2]
[346228899,1734789032608,-2168.99634198,0.00019,2]
[346228900,1734789032619,-2790.45065502,0.00019,2]
[346228901,1734789032631,-1608.85642434,0.00019,2]
[346228902,1734789032642,-14698.59,0.00019,2]
[346228903,1734789032659,-967.02152343,0.00019,2]
[346228904,1734789032670,-389.94,0.00019,2]
[346228905,1734789032681,-267.74259925,0.00019,2]
[346228906,1734789032693,-378.37411196,0.00019,2]
[346228907,1734789032720,-2727.3619961,0.00019,2]
[346228908,1734789032739,-1812.896085,0.00019,2]
[346228909,1734789032751,-579.1131891,0.00019,2]
[346228910,1734789032762,-487.25,0.00019,2]
[346228911,1734789032774,-437.11199998,0.00019,2]
[346228912,1734789032785,-307.8334,0.00019,2]
[346228913,1734789032797,-496.86092717,0.00019,2]
[346228914,1734789032808,-23418.64136594,0.00019,2]
[346228915,1734789032818,-316.61,0.00019061,2]
[346228916,1734789032827,-698.25,0.00019061,2]
[346228917,1734789032836,-730.14,0.00019061,2]
[346228918,1734789032846,-453.06,0.00019061,2]
[346228919,1734789032859,-300.0,0.00019061,2]
[346228920,1734789032873,-150.0,0.00019061,2]
[346228921,1734789032886,-261.93,0.00019066,2]
[346228922,1734789032898,-574.34,0.00019074,2]
[346228923,1734789032909,-3293.6905,0.000193,2]
[346228924,1734789032920,-6235.1897,0.000193,2]
[346228926,1734789032931,-1000.0,0.000193,2]
[346228928,1734789032944,-188.02,0.00019351,2]
[346228930,1734789032955,-426.41770076,0.00019364,2]
[346228931,1734789032968,-5465.8371,0.00019364,2]
[346228932,1734789032982,-2500.0,0.00019371,2]
[346228934,1734789032995,-241.38715503,0.00019371,2]
[346228937,1734789033008,-4022.17198673,0.00019372,2]
[346228939,1734789033021,-1036.45,0.00019399,2]
[346228941,1734789033034,-500.0,0.00019399,2]
[346228942,1734789033046,-500.0,0.00019399,2]
[346228943,1734789033058,-1124.63,0.00019399,2]
[346228945,1734789033069,-500.0,0.00019399,2]
[346228947,1734789033081,-1025.7,0.00019399,2]
[346228950,1734789033094,-883.37,0.00019399,2]
[346228952,1734789033108,-1155.55,0.00019399,2]
[346228954,1734789033121,-500.0,0.00019399,2]
[346228957,1734789033134,-628.26,0.00019399,2]
[346228959,1734789033147,-5284.39,0.00019399,2]
[346228961,1734789033160,-1094.47,0.00019399,2]
[346228964,1734789033174,-500.0,0.00019399,2]
[346228966,1734789033186,-500.0,0.00019399,2]
[346228968,1734789033198,-512.14,0.00019399,2]
[346228970,1734789033209,-500.0,0.00019399,2]
[346228973,1734789033222,-500.0,0.00019399,2]
[346228975,1734789033238,-57678.14011182,0.000194,2]
[346228977,1734789033255,-46900.9879144,0.000194,2]
[346228978,1734789033289,-1196.5,0.000194,2]
[346228979,1734789033303,-12944.32442912,0.000194,2]
[346228980,1734789033319,-1071.52999766,0.000194,2]
[346228981,1734789033335,-10300.11934569,0.000194,2]
[346228982,1734789033360,-7457.6929809,0.000194,2]
[346228983,1734789033371,-400.0,0.000194,7]
[346228984,1734789033383,-2266.1956,0.00019416,2]
[346228985,1734789033393,-426.41770076,0.00019421,2]
[346228986,1734789033404,-4022.17198665,0.00019428,2]
[346228987,1734789033415,-6456.0733,0.00019464,2]
[346228988,1734789033428,-500.0,0.0001947,2]
[346228989,1734789033442,-765.83,0.0001947,2]
[346228990,1734789033454,-500.0,0.0001947,2]
[346228991,1734789033464,-1727.08,0.0001947,2]
[346228992,1734789033476,-905.53,0.0001947,2]
[346228993,1734789033491,-1344.96,0.0001947,2]
[346228994,1734789033502,-500.0,0.0001947,2]
[346228995,1734789033514,-1019.21,0.0001947,2]
[346228996,1734789033527,-608.91922167,0.0001947,2]
[346228997,1734789033541,-500.0,0.0001947,2]
[346228998,1734789033552,-500.0,0.0001947,2]
[346228999,1734789033564,-1093.85,0.0001947,2]
[346229000,1734789033575,-575.5712,0.00019471,2]
[346229001,1734789033586,-81454.3365,0.00019471,2]
[346229002,1734789033598,-500.0,0.00019472,2]
[346229003,1734789033612,-1000.0,0.00019472,2]
[346229004,1734789033623,-2601.8864,0.00019472,2]
[346229005,1734789033635,-34288.482,0.00019473,2]
[346229006,1734789033648,-426.41770076,0.00019479,2]
[346229007,1734789033659,-1783.15048,0.0001948,2]
[346229008,1734789033671,-4022.17198665,0.00019485,2]
[346229009,1734789033683,-800.0,0.000195,7]
[346229010,1734789033695,-1000.0,0.000195,2]
[346229011,1734789033706,-500.0,0.00019518,2]
[346229012,1734789033718,-900.0,0.00019518,2]
[346229013,1734789033729,-426.41770076,0.00019536,2]
[346229014,1734789033742,-4022.17198665,0.00019541,2]
[346229015,1734789033753,-164.23356661,0.00019561,2]
[346229016,1734789033765,-152.76,0.00019561,2]
[346229017,1734789033777,-500.0,0.00019569,2]
[346229018,1734789033788,-500.0,0.00019569,2]
[346229019,1734789033800,-500.0,0.00019569,2]
[346229020,1734789033811,-500.0,0.00019569,2]
[346229021,1734789033822,-302.31632195,0.00019569,2]
[346229022,1734789033834,-606.5,0.00019569,2]
[346229023,1734789033845,-500.0,0.00019569,2]
[346229024,1734789033856,-500.0,0.00019569,2]
[346229025,1734789033868,-500.0,0.00019569,2]
[346229026,1734789033879,-500.0,0.00019569,2]
[346229027,1734789033890,-500.0,0.00019569,2]
[346229028,1734789033901,-500.0,0.00019569,2]
[346229029,1734789033912,-422.8599998,0.00019569,2]
[346229030,1734789033924,-500.0,0.00019569,2]
[346229031,1734789033935,-500.0,0.00019569,2]
[346229032,1734789033947,-500.0,0.00019569,2]
[346229033,1734789033959,-507.04222171,0.00019569,2]
[346229034,1734789033970,-500.0,0.00019569,2]
[346229035,1734789033983,-500.0,0.00019569,2]
[346229036,1734789033995,-500.0,0.00019569,2]
[346229037,1734789034007,-500.0,0.00019569,2]
[346229038,1734789034018,-500.0,0.00019569,2]
[346229039,1734789034030,-500.0,0.00019569,2]
[346229040,1734789034041,-500.0,0.00019569,2]
[346229041,1734789034053,-500.0,0.00019569,2]
[346229042,1734789034065,-500.0,0.00019569,2]
[346229043,1734789034077,-500.0,0.00019569,2]
[346229044,1734789034090,-500.0,0.00019569,2]
[346229045,1734789034102,-500.0,0.00019569,2]
[346229046,1734789034114,-500.0,0.00019569,2]
[346229047,1734789034126,-500.0,0.00019569,2]
[346229048,1734789034138,-521.91133643,0.00019569,2]
[346229049,1734789034150,-500.0,0.00019569,2]
[346229050,1734789034162,-500.0,0.00019569,2]
[346229051,1734789034173,-500.0,0.00019569,2]
[346229052,1734789034185,-357.7822805,0.00019569,2]
[346229053,1734789034196,-500.0,0.00019569,2]
[346229054,1734789034208,-500.0,0.00019569,2]
[346229055,1734789034220,-500.0,0.00019569,2]
[346229056,1734789034232,-500.0,0.00019569,2]
[346229057,1734789034244,-228.543297,0.00019569,2]
[346229058,1734789034255,-644.36,0.00019569,2]
[346229059,1734789034267,-500.0,0.00019569,2]
[346229060,1734789034278,-500.0,0.00019569,2]
[346229061,1734789034290,-500.0,0.00019569,2]
[346229062,1734789034302,-500.0,0.00019569,2]
[346229063,1734789034314,-526.97,0.00019569,2]
[346229064,1734789034326,-623.97,0.00019569,2]
[346229065,1734789034338,-625.02464498,0.00019569,2]
[346229066,1734789034350,-500.0,0.00019569,2]
[346229067,1734789034362,-500.0,0.00019569,2]
[346229068,1734789034374,-500.0,0.00019569,2]
[346229069,1734789034385,-781.96,0.00019569,2]
[346229070,1734789034397,-500.0,0.00019569,2]
[346229071,1734789034408,-500.0,0.00019569,2]
[346229072,1734789034420,-565.46,0.00019569,2]
[346229073,1734789034431,-500.0,0.00019569,2]
[346229074,1734789034443,-255.803535,0.00019569,2]
[346229075,1734789034455,-500.0,0.00019569,2]
[346229076,1734789034467,-500.0,0.00019569,2]
[346229077,1734789034479,-500.0,0.00019569,2]
[346229078,1734789034494,-500.0,0.00019569,2]
[346229079,1734789034506,-200.0,0.00019569,2]
[346229080,1734789034518,-617.34,0.00019569,2]
[346229081,1734789034531,-500.0,0.00019569,2]
[346229082,1734789034543,-500.0,0.00019569,2]
[346229083,1734789034555,-500.0,0.00019569,2]
[346229084,1734789034567,-500.0,0.00019569,2]
[346229085,1734789034578,-500.0,0.00019569,2]
[346229086,1734789034590,-500.0,0.00019569,2]
[346229087,1734789034601,-500.0,0.00019569,2]
[346229088,1734789034613,-852.05,0.00019569,2]
[346229089,1734789034624,-500.0,0.00019569,2]
[346229090,1734789034635,-500.99837081,0.00019569,2]
[346229091,1734789034647,-500.0,0.00019569,2]
[346229092,1734789034659,-500.0,0.00019569,2]
[346229093,1734789034670,-500.0,0.00019569,2]
[346229094,1734789034681,-2474.56,0.00019569,2]
[346229095,1734789034692,-500.0,0.00019569,2]
[346229096,1734789034704,-501.67255331,0.00019569,2]
[346229097,1734789034716,-522.74,0.00019569,2]
[346229098,1734789034728,-642.51612937,0.00019569,2]
[346229099,1734789034743,-500.0,0.00019569,2]
[346229100,1734789034755,-500.0,0.00019569,2]
[346229101,1734789034767,-1313.29,0.00019569,2]
[346229102,1734789034779,-500.0,0.00019569,2]
[346229103,1734789034790,-501.18922147,0.00019569,2]
[346229104,1734789034802,-555.96,0.00019569,2]
[346229105,1734789034814,-500.0,0.00019569,2]
[346229106,1734789034825,-500.0,0.00019569,2]
[346229107,1734789034836,-500.0,0.00019569,2]
[346229108,1734789034846,-500.0,0.00019569,2]
[346229109,1734789034857,-500.0,0.00019569,2]
[346229110,1734789034868,-500.0,0.00019569,2]
[346229111,1734789034879,-500.0,0.00019569,2]
[346229112,1734789034889,-500.0,0.00019569,2]
[346229113,1734789034900,-500.0,0.00019569,2]
[346229114,1734789034910,-500.0,0.00019569,2]
[346229115,1734789034921,-802.31,0.00019569,2]
[346229116,1734789034931,-500.0,0.00019569,2]
[346229117,1734789034941,-606.22,0.00019569,2]
[346229118,1734789034952,-500.0,0.00019569,2]
[346229119,1734789034962,-500.0,0.00019569,2]
[346229120,1734789034973,-500.0,0.00019569,2]
[346229121,1734789034985,-500.0,0.00019569,2]
[346229122,1734789034996,-888.52,0.00019569,2]
[346229123,1734789035006,-2746.27,0.00019569,2]
[346229124,1734789035017,-500.0,0.00019569,2]
[346229125,1734789035027,-504.68337981,0.00019569,2]
[346229126,1734789035038,-5535.04,0.00019569,2]
[346229127,1734789035049,-500.0,0.00019569,2]
[346229128,1734789035059,-500.0,0.00019569,2]
[346229129,1734789035070,-500.0,0.00019569,2]
[346229130,1734789035080,-500.0,0.00019569,2]
[346229131,1734789035091,-2022.19,0.00019569,2]
[346229132,1734789035102,-500.0,0.00019569,2]
[346229133,1734789035112,-500.0,0.00019569,2]
[346229134,1734789035122,-500.0,0.00019569,2]
[346229135,1734789035132,-740.22,0.00019569,2]
[346229136,1734789035142,-500.0,0.00019569,2]
[346229137,1734789035152,-500.0,0.00019569,2]
[346229138,1734789035161,-677.85,0.00019569,2]
[346229139,1734789035171,-500.0,0.00019569,2]
[346229140,1734789035182,-513.6,0.00019569,2]
[346229141,1734789035191,-500.0,0.00019569,2]
[346229142,1734789035201,-500.0,0.00019569,2]
[346229143,1734789035212,-3316.35,0.00019569,2]
[346229144,1734789035222,-759.05,0.00019569,2]
[346229145,1734789035232,-500.0,0.00019569,2]
[346229146,1734789035243,-500.0,0.00019569,2]
[346229147,1734789035252,-500.0,0.00019569,2]
[346229148,1734789035260,-500.0,0.00019569,2]
[346229149,1734789035269,-500.0,0.00019569,2]
[346229150,1734789035278,-500.0,0.00019569,2]
[346229151,1734789035287,-500.0,0.00019569,2]
[346229152,1734789035617,-500.0,0.00019569,2]
[346229153,1734789035633,-614.34388064,0.00019569,2]
[346229154,1734789035642,-500.0,0.00019569,2]